[Event "Betsys MČR v online bleskovém šachu 2021"]
[Site "Chess.com"]
[Date "2021.04.17"]
[Round "10"]
[White "JosefBara"]
[Black "misacz"]
[Result "1-0"]
[WhiteElo "1305"]
[BlackElo "1081"]
[TimeControl "180+1"]
[EndTime "10:38:05 PDT"]
[Termination "Uživatel JosefBara zvítězil po vzdání soupeře"]

1. d4 {[%clk 0:03:00.9]} 1... Nf6 {[%clk 0:02:57.4]} 2. c4 {[%clk 0:03:00.9]}
2... e6 {[%clk 0:02:54.8]} 3. Nc3 {[%clk 0:03:01.3]} 3... Bb4 {[%clk 0:02:53.4]}
4. Bg5 {[%clk 0:03:01.2]} 4... Bxc3+ {[%clk 0:02:51.2]} 5. bxc3 {[%clk
0:03:01.1]} 5... d5 {[%clk 0:02:52.1]} 6. cxd5 {[%clk 0:03:00.4]} 6... exd5
{[%clk 0:02:44.2]} 7. Nf3 {[%clk 0:03:00.2]} 7... Be6 {[%clk 0:02:41.5]} 8. e3
{[%clk 0:02:59]} 8... O-O {[%clk 0:02:37]} 9. Be2 {[%clk 0:02:58.6]} 9... Nc6
{[%clk 0:02:35.6]} 10. O-O {[%clk 0:02:58.4]} 10... h6 {[%clk 0:02:35.5]} 11.
Bh4 {[%clk 0:02:57.9]} 11... Bg4 {[%clk 0:02:33.3]} 12. Rb1 {[%clk 0:02:56.6]}
12... Rb8 {[%clk 0:02:30]} 13. Qa4 {[%clk 0:02:53.1]} 13... Qd6 {[%clk
0:02:20.2]} 14. Bg3 {[%clk 0:02:49.5]} 14... Qe6 {[%clk 0:02:16.3]} 15. Bb5
{[%clk 0:02:45.4]} 15... a6 {[%clk 0:02:11.9]} 16. Bxc6 {[%clk 0:02:43.3]} 16...
bxc6 {[%clk 0:02:11]} 17. Rxb8 {[%clk 0:02:40.1]} 17... Rxb8 {[%clk 0:02:11.9]}
18. Bxc7 {[%clk 0:02:38.7]} 18... Rb7 {[%clk 0:02:06.7]} 19. Bg3 {[%clk
0:02:36.7]} 19... Ra7 {[%clk 0:02:07]} 20. Ne5 {[%clk 0:02:33.3]} 20... Ne4
{[%clk 0:02:02.5]} 21. Qxc6 {[%clk 0:02:14.7]} 21... Qxc6 {[%clk 0:02:00.8]} 22.
Nxc6 {[%clk 0:02:14.3]} 22... Rc7 {[%clk 0:01:59.3]} 23. Ne5 {[%clk 0:02:12.2]}
23... Nxg3 {[%clk 0:01:57.1]} 24. hxg3 {[%clk 0:02:09.4]} 24... Be6 {[%clk
0:01:56.3]} 25. Rc1 {[%clk 0:02:08.4]} 25... Rb7 {[%clk 0:01:38.5]} 26. Nc6
{[%clk 0:02:02.6]} 26... Rb2 {[%clk 0:01:32.9]} 27. a4 {[%clk 0:02:00.4]} 27...
Ra2 {[%clk 0:01:28.3]} 28. a5 {[%clk 0:01:59.8]} 28... Bd7 {[%clk 0:01:25]} 29.
Nb8 {[%clk 0:01:56.3]} 29... Bc8 {[%clk 0:01:21.3]} 30. Nc6 {[%clk 0:01:53.2]}
30... Bd7 {[%clk 0:01:20.8]} 31. Nb8 {[%clk 0:01:51.1]} 31... Bc8 {[%clk
0:01:20.5]} 32. c4 {[%clk 0:01:45.1]} 32... dxc4 {[%clk 0:01:15.4]} 33. Rxc4
{[%clk 0:01:44.5]} 33... Rxa5 {[%clk 0:01:16.3]} 34. Rxc8+ {[%clk 0:01:43.7]}
1-0

[Event "Betsys MČR v online bleskovém šachu 2021"]
[Site "Chess.com"]
[Date "2021.04.17"]
[Round "10"]
[White "Michelangelo111"]
[Black "kaprasov"]
[Result "1-0"]
[WhiteElo "2105"]
[BlackElo "1867"]
[TimeControl "180+1"]
[EndTime "10:38:08 PDT"]
[Termination "Uživatel Michelangelo111 zvítězil matem"]

1. Nf3 {[%clk 0:03:00.9]} 1... Nf6 {[%clk 0:03:00.1]} 2. g3 {[%clk 0:03:00.6]}
2... g6 {[%clk 0:03:00.8]} 3. Bg2 {[%clk 0:03:01.5]} 3... Bg7 {[%clk 0:03:01.4]}
4. O-O {[%clk 0:03:01.2]} 4... O-O {[%clk 0:03:01.9]} 5. d4 {[%clk 0:03:02.1]}
5... d5 {[%clk 0:03:02.2]} 6. c4 {[%clk 0:03:02.6]} 6... dxc4 {[%clk 0:03:02.6]}
7. Qc2 {[%clk 0:03:00.2]} 7... c6 {[%clk 0:02:46]} 8. Qxc4 {[%clk 0:02:57.8]}
8... Be6 {[%clk 0:02:37.6]} 9. Qc2 {[%clk 0:02:56.6]} 9... Nbd7 {[%clk 0:02:37]}
10. Nc3 {[%clk 0:02:54.5]} 10... a6 {[%clk 0:02:34.9]} 11. e4 {[%clk 0:02:52.2]}
11... Bc4 {[%clk 0:02:32.2]} 12. Re1 {[%clk 0:02:50.2]} 12... a5 {[%clk
0:02:28.7]} 13. Bf4 {[%clk 0:02:44.8]} 13... e6 {[%clk 0:02:27.6]} 14. Bd6
{[%clk 0:02:32.7]} 14... Re8 {[%clk 0:02:26]} 15. e5 {[%clk 0:02:27]} 15... Nd5
{[%clk 0:02:25.4]} 16. Ne4 {[%clk 0:02:21.8]} 16... Ba6 {[%clk 0:02:18.1]} 17.
h4 {[%clk 0:02:19.5]} 17... Bf8 {[%clk 0:02:17.1]} 18. h5 {[%clk 0:02:15.4]}
18... Bxd6 {[%clk 0:02:14.1]} 19. Nxd6 {[%clk 0:02:14.7]} 19... Rf8 {[%clk
0:02:08.6]} 20. Qd2 {[%clk 0:02:02.9]} 20... N7b6 {[%clk 0:01:54]} 21. Qh6
{[%clk 0:01:58.2]} 21... Nc4 {[%clk 0:01:32.1]} 22. Ng5 {[%clk 0:01:55.5]} 22...
Qxg5 {[%clk 0:01:22]} 23. Qxg5 {[%clk 0:01:54.4]} 23... Nxd6 {[%clk 0:01:14.9]}
24. exd6 {[%clk 0:01:55.3]} 24... f6 {[%clk 0:01:12.8]} 25. Qh6 {[%clk
0:01:52.3]} 25... Bd3 {[%clk 0:01:12.2]} 26. Bxd5 {[%clk 0:01:48]} 26... exd5
{[%clk 0:00:59.6]} 27. Re7 {[%clk 0:01:45.2]} 27... g5 {[%clk 0:00:55.8]} 28.
Qg7# {[%clk 0:01:43.3]} 1-0

[Event "Betsys MČR v online bleskovém šachu 2021"]
[Site "Chess.com"]
[Date "2021.04.17"]
[Round "10"]
[White "DrDANDog"]
[Black "vasekpaulus"]
[Result "0-1"]
[WhiteElo "1784"]
[BlackElo "2055"]
[TimeControl "180+1"]
[EndTime "10:38:11 PDT"]
[Termination "Uživatel vasekpaulus zvítězil matem"]

1. e4 {[%clk 0:02:56]} 1... c5 {[%clk 0:02:58.8]} 2. Nf3 {[%clk 0:02:56.2]} 2...
Nc6 {[%clk 0:02:58.8]} 3. Bb5 {[%clk 0:02:56.8]} 3... g6 {[%clk 0:02:58.5]} 4.
O-O {[%clk 0:02:56.4]} 4... Bg7 {[%clk 0:02:58.2]} 5. Nc3 {[%clk 0:02:56.7]}
5... e5 {[%clk 0:02:55.8]} 6. Nd5 {[%clk 0:02:53.4]} 6... Nge7 {[%clk
0:02:54.3]} 7. Nxe7 {[%clk 0:02:52.5]} 7... Qxe7 {[%clk 0:02:52]} 8. c3 {[%clk
0:02:50.4]} 8... a6 {[%clk 0:02:49.5]} 9. Bxc6 {[%clk 0:02:49.7]} 9... dxc6
{[%clk 0:02:49.7]} 10. Qb3 {[%clk 0:02:48.2]} 10... O-O {[%clk 0:02:43.5]} 11.
Qb6 {[%clk 0:02:47.6]} 11... Bg4 {[%clk 0:02:36.7]} 12. d3 {[%clk 0:02:35]}
12... f5 {[%clk 0:02:35.4]} 13. Bg5 {[%clk 0:02:28.1]} 13... Qd7 {[%clk
0:02:26.6]} 14. Qxc5 {[%clk 0:02:24.3]} 14... fxe4 {[%clk 0:02:24.2]} 15. Nxe5
{[%clk 0:02:20.7]} 15... Qf5 {[%clk 0:02:11.4]} 16. Qc4+ {[%clk 0:02:09]} 16...
Kh8 {[%clk 0:02:10.8]} 17. Nxg4 {[%clk 0:02:05.7]} 17... Qxg5 {[%clk 0:01:55.4]}
18. Qxe4 {[%clk 0:02:04.6]} 18... Rf4 {[%clk 0:01:54.7]} 19. Qe3 {[%clk
0:01:45.2]} 19... Rxg4 {[%clk 0:01:53.8]} 20. Qxg5 {[%clk 0:01:46.1]} 20... Rxg5
{[%clk 0:01:53.8]} 21. d4 {[%clk 0:01:45.1]} 21... Re8 {[%clk 0:01:52.9]} 22.
Rfe1 {[%clk 0:01:45.5]} 22... Rxe1+ {[%clk 0:01:35.3]} 23. Rxe1 {[%clk
0:01:46.4]} 23... Kg8 {[%clk 0:01:35.6]} 24. Re7 {[%clk 0:01:46.1]} 24... Rb5
{[%clk 0:01:35.8]} 25. b3 {[%clk 0:01:45.6]} 25... Kf8 {[%clk 0:01:33.9]} 26.
Rd7 {[%clk 0:01:45.8]} 26... Ra5 {[%clk 0:01:17.5]} 27. a4 {[%clk 0:01:42.9]}
27... b5 {[%clk 0:01:15.5]} 28. axb5 {[%clk 0:01:23.6]} 28... Ra1# {[%clk
0:01:14.5]} 0-1

[Event "Betsys MČR v online bleskovém šachu 2021"]
[Site "Chess.com"]
[Date "2021.04.17"]
[Round "10"]
[White "MatyldaCZ"]
[Black "MiroslavBucek"]
[Result "1-0"]
[WhiteElo "1434"]
[BlackElo "1594"]
[TimeControl "180+1"]
[EndTime "10:38:11 PDT"]
[Termination "Uživatel MatyldaCZ zvítězil po vzdání soupeře"]

1. e4 {[%clk 0:03:00.9]} 1... e5 {[%clk 0:02:59.5]} 2. Nf3 {[%clk 0:03:01.1]}
2... Nc6 {[%clk 0:02:59.1]} 3. Bc4 {[%clk 0:03:01.4]} 3... Nf6 {[%clk
0:02:58.6]} 4. Nc3 {[%clk 0:03:01.6]} 4... Nxe4 {[%clk 0:02:58.4]} 5. Bxf7+
{[%clk 0:03:00.7]} 5... Kxf7 {[%clk 0:02:58.4]} 6. Nxe4 {[%clk 0:03:01.3]} 6...
d5 {[%clk 0:02:58.2]} 7. Nc3 {[%clk 0:02:59.3]} 7... Bg4 {[%clk 0:02:54.4]} 8.
h3 {[%clk 0:02:58.3]} 8... Bh5 {[%clk 0:02:53.4]} 9. d3 {[%clk 0:02:53.2]} 9...
Bb4 {[%clk 0:02:51]} 10. Bd2 {[%clk 0:02:52.1]} 10... Re8 {[%clk 0:02:45.8]} 11.
O-O {[%clk 0:02:51.1]} 11... Kg8 {[%clk 0:02:43.6]} 12. Re1 {[%clk 0:02:45.3]}
12... Bxc3 {[%clk 0:02:38.1]} 13. Bxc3 {[%clk 0:02:45.3]} 13... e4 {[%clk
0:02:38.4]} 14. dxe4 {[%clk 0:02:45]} 14... dxe4 {[%clk 0:02:30.8]} 15. Qxd8
{[%clk 0:02:44.8]} 15... Raxd8 {[%clk 0:02:29.5]} 16. Ng5 {[%clk 0:02:40.4]}
16... Bg6 {[%clk 0:02:18.7]} 17. h4 {[%clk 0:02:29.3]} 17... h6 {[%clk
0:02:17.4]} 18. Nh3 {[%clk 0:02:29.8]} 18... Ne7 {[%clk 0:02:15.3]} 19. Nf4
{[%clk 0:02:29.3]} 19... Bh7 {[%clk 0:01:58.7]} 20. Ne6 {[%clk 0:02:28.3]} 20...
Rd6 {[%clk 0:01:49.1]} 21. Nxg7 {[%clk 0:02:27.6]} 21... Red8 {[%clk 0:01:43.2]}
22. Nh5 {[%clk 0:02:19.7]} 22... Nf5 {[%clk 0:01:41.5]} 23. Nf6+ {[%clk
0:02:11]} 23... Kf7 {[%clk 0:01:30.4]} 24. Nxh7 {[%clk 0:02:09]} 24... Nxh4
{[%clk 0:01:15.1]} 25. Rxe4 {[%clk 0:01:56.2]} 25... Nf5 {[%clk 0:01:14.2]} 26.
Rf4 {[%clk 0:01:52.4]} 26... Kg6 {[%clk 0:01:14.2]} 27. Nf6 {[%clk 0:01:49.3]}
27... Rxf6 {[%clk 0:01:12.9]} 28. Bxf6 {[%clk 0:01:48.1]} 28... Kxf6 {[%clk
0:01:13]} 29. g4 {[%clk 0:01:47.2]} 29... Ke5 {[%clk 0:01:05]} 30. Rxf5+ {[%clk
0:01:47.3]} 30... Ke4 {[%clk 0:00:58.3]} 31. Re1+ {[%clk 0:01:47.6]} 31... Kd4
{[%clk 0:00:53.5]} 32. Rd1+ {[%clk 0:01:48]} 1-0

[Event "Betsys MČR v online bleskovém šachu 2021"]
[Site "Chess.com"]
[Date "2021.04.17"]
[Round "10"]
[White "conysek"]
[Black "Sunnika"]
[Result "0-1"]
[WhiteElo "2120"]
[BlackElo "2301"]
[TimeControl "180+1"]
[EndTime "10:38:13 PDT"]
[Termination "Uživatel Sunnika zvítězil po vzdání soupeře"]

1. e4 {[%clk 0:03:00.9]} 1... e5 {[%clk 0:02:59.3]} 2. Nf3 {[%clk 0:03:00.9]}
2... Nc6 {[%clk 0:02:59.7]} 3. Bb5 {[%clk 0:02:59.4]} 3... Nf6 {[%clk
0:02:58.8]} 4. O-O {[%clk 0:02:58.6]} 4... Nxe4 {[%clk 0:02:59.1]} 5. Re1 {[%clk
0:02:59.1]} 5... Nd6 {[%clk 0:02:57.7]} 6. Nxe5 {[%clk 0:02:59.3]} 6... Be7
{[%clk 0:02:56.7]} 7. Nxc6 {[%clk 0:02:58.5]} 7... dxc6 {[%clk 0:02:56.3]} 8.
Ba4 {[%clk 0:02:57.8]} 8... O-O {[%clk 0:02:55.1]} 9. Bb3 {[%clk 0:02:58.3]}
9... c5 {[%clk 0:02:53.4]} 10. d3 {[%clk 0:02:58.6]} 10... Nf5 {[%clk 0:02:51]}
11. Nc3 {[%clk 0:02:54.8]} 11... c6 {[%clk 0:02:38.5]} 12. Bf4 {[%clk
0:02:51.2]} 12... Nd4 {[%clk 0:02:37.1]} 13. Qh5 {[%clk 0:02:39.5]} 13... a5
{[%clk 0:02:19.9]} 14. Qe5 {[%clk 0:01:49.2]} 14... Nxb3 {[%clk 0:01:19.3]} 15.
axb3 {[%clk 0:01:47]} 15... Be6 {[%clk 0:01:19.7]} 16. Ne4 {[%clk 0:01:38.8]}
16... b6 {[%clk 0:01:19.7]} 17. Bg5 {[%clk 0:01:33.1]} 17... Re8 {[%clk
0:00:59.3]} 18. Bxe7 {[%clk 0:01:30.3]} 18... Rxe7 {[%clk 0:00:56.4]} 19. Qg5
{[%clk 0:01:16.8]} 19... Rd7 {[%clk 0:00:56.4]} 20. Nf6+ {[%clk 0:01:15.4]}
20... Qxf6 {[%clk 0:00:55.6]} 0-1

[Event "Betsys MČR v online bleskovém šachu 2021"]
[Site "Chess.com"]
[Date "2021.04.17"]
[Round "10"]
[White "Hollow_Head"]
[Black "bumurubac"]
[Result "1-0"]
[WhiteElo "1090"]
[BlackElo "1015"]
[TimeControl "180+1"]
[EndTime "10:38:23 PDT"]
[Termination "Uživatel Hollow_Head zvítězil matem"]

1. e4 {[%clk 0:02:59.9]} 1... e5 {[%clk 0:02:59.1]} 2. Qh5 {[%clk 0:02:59.9]}
2... Bc5 {[%clk 0:02:58.2]} 3. Qxe5+ {[%clk 0:02:54.9]} 3... Qe7 {[%clk
0:02:48.4]} 4. Qxg7 {[%clk 0:02:53.5]} 4... Qh4 {[%clk 0:02:47.8]} 5. g3 {[%clk
0:02:45.8]} 5... Qxe4+ {[%clk 0:02:46.6]} 6. Ne2 {[%clk 0:02:45.6]} 6... Qxh1
{[%clk 0:02:45.7]} 7. Qxh8 {[%clk 0:02:46.2]} 7... Qf3 {[%clk 0:02:43.3]} 8.
Qxg8+ {[%clk 0:02:45.5]} 8... Ke7 {[%clk 0:02:43.1]} 9. Qg5+ {[%clk 0:02:38.1]}
9... f6 {[%clk 0:02:42]} 10. Qxc5+ {[%clk 0:02:37.7]} 10... d6 {[%clk
0:02:39.8]} 11. Qe3+ {[%clk 0:02:37]} 11... Qxe3 {[%clk 0:02:38.4]} 12. fxe3
{[%clk 0:02:37.9]} 12... Nc6 {[%clk 0:02:38.3]} 13. d3 {[%clk 0:02:37.9]} 13...
Nb4 {[%clk 0:02:38.1]} 14. Na3 {[%clk 0:02:34.9]} 14... Bg4 {[%clk 0:02:36.2]}
15. c3 {[%clk 0:02:34.5]} 15... Nd5 {[%clk 0:02:34.9]} 16. e4 {[%clk 0:02:33.7]}
16... Nb6 {[%clk 0:02:34.4]} 17. Be3 {[%clk 0:02:33.1]} 17... Nd7 {[%clk
0:02:33.5]} 18. O-O-O {[%clk 0:02:31.5]} 18... Ne5 {[%clk 0:02:33.1]} 19. d4
{[%clk 0:02:31.3]} 19... Ng6 {[%clk 0:02:32.1]} 20. h3 {[%clk 0:02:28.6]} 20...
Bxe2 {[%clk 0:02:29.2]} 21. Bxe2 {[%clk 0:02:28.9]} 21... Re8 {[%clk 0:02:29.1]}
22. Bh5 {[%clk 0:02:27.8]} 22... Kf7 {[%clk 0:02:28]} 23. Bxg6+ {[%clk
0:02:27.8]} 23... Kxg6 {[%clk 0:02:28]} 24. e5 {[%clk 0:02:28]} 24... dxe5
{[%clk 0:02:27.2]} 25. dxe5 {[%clk 0:02:28.9]} 25... Rxe5 {[%clk 0:02:26.1]} 26.
Bd4 {[%clk 0:02:29.1]} 26... Re2 {[%clk 0:02:24.6]} 27. Rf1 {[%clk 0:02:26.3]}
27... f5 {[%clk 0:02:23.7]} 28. g4 {[%clk 0:02:26.1]} 28... fxg4 {[%clk
0:02:23.1]} 29. hxg4 {[%clk 0:02:27]} 29... h5 {[%clk 0:02:22.5]} 30. Rf6+
{[%clk 0:02:26.6]} 30... Kg5 {[%clk 0:02:21.8]} 31. Rf7 {[%clk 0:02:18.4]} 31...
hxg4 {[%clk 0:02:20.7]} 32. Rxc7 {[%clk 0:02:18.3]} 32... g3 {[%clk 0:02:20.5]}
33. Rg7+ {[%clk 0:02:17.6]} 33... Kf4 {[%clk 0:02:19.5]} 34. Rf7+ {[%clk
0:02:11.8]} 34... Kg4 {[%clk 0:02:18.5]} 35. Kd1 {[%clk 0:02:03.5]} 35... Rh2
{[%clk 0:02:16.5]} 36. Be5 {[%clk 0:02:02.2]} 36... g2 {[%clk 0:02:15.3]} 37.
Rg7+ {[%clk 0:02:00]} 37... Kh3 {[%clk 0:02:14.8]} 38. Bxh2 {[%clk 0:01:57.1]}
38... Kxh2 {[%clk 0:02:13.5]} 39. Rxg2+ {[%clk 0:01:56.9]} 39... Kxg2 {[%clk
0:02:13.1]} 40. Nb5 {[%clk 0:01:56.6]} 40... a6 {[%clk 0:02:12.3]} 41. Na7
{[%clk 0:01:56.3]} 41... Kf3 {[%clk 0:02:12.2]} 42. Kd2 {[%clk 0:01:56.6]} 42...
Ke4 {[%clk 0:02:12.3]} 43. Nc8 {[%clk 0:01:55.8]} 43... Kd5 {[%clk 0:02:12.4]}
44. b3 {[%clk 0:01:55.1]} 44... Kc6 {[%clk 0:02:12.1]} 45. Ne7+ {[%clk
0:01:54.7]} 45... Kb6 {[%clk 0:02:11.2]} 46. Nd5+ {[%clk 0:01:53.5]} 46... Kc6
{[%clk 0:02:10.1]} 47. c4 {[%clk 0:01:54.1]} 47... b5 {[%clk 0:02:09.5]} 48. Kd3
{[%clk 0:01:53.1]} 48... bxc4+ {[%clk 0:02:09]} 49. bxc4 {[%clk 0:01:54]} 49...
Kc5 {[%clk 0:02:08.5]} 50. Nc7 {[%clk 0:01:52.4]} 50... Kc6 {[%clk 0:02:08.1]}
51. Nxa6 {[%clk 0:01:52.5]} 51... Kb6 {[%clk 0:02:08.1]} 52. Nb4 {[%clk
0:01:52.5]} 52... Kc5 {[%clk 0:02:08]} 53. Nc2 {[%clk 0:01:52.6]} 53... Kb6
{[%clk 0:02:08]} 54. Kd4 {[%clk 0:01:52.9]} 54... Kc6 {[%clk 0:02:08]} 55. c5
{[%clk 0:01:53.2]} 55... Kc7 {[%clk 0:02:07.1]} 56. Kd5 {[%clk 0:01:53.3]} 56...
Kc8 {[%clk 0:02:06.8]} 57. c6 {[%clk 0:01:53.8]} 57... Kc7 {[%clk 0:02:06.4]}
58. Kc5 {[%clk 0:01:53.5]} 58... Kc8 {[%clk 0:02:06.3]} 59. Kd6 {[%clk
0:01:53.9]} 59... Kb8 {[%clk 0:02:06]} 60. a4 {[%clk 0:01:52.3]} 60... Kc8
{[%clk 0:02:05.7]} 61. c7 {[%clk 0:01:50.9]} 61... Kb7 {[%clk 0:02:04.2]} 62.
Kd7 {[%clk 0:01:51.1]} 62... Kb6 {[%clk 0:02:03.5]} 63. c8=Q {[%clk 0:01:51.4]}
63... Ka5 {[%clk 0:02:03.4]} 64. Qa8+ {[%clk 0:01:48.9]} 64... Kb6 {[%clk
0:02:02.8]} 65. Qc6+ {[%clk 0:01:48.2]} 65... Ka5 {[%clk 0:02:02.3]} 66. Qb5#
{[%clk 0:01:47.5]} 1-0

[Event "Betsys MČR v online bleskovém šachu 2021"]
[Site "Chess.com"]
[Date "2021.04.17"]
[Round "10"]
[White "VojtechPlat"]
[Black "FutureFideMasseur"]
[Result "1-0"]
[WhiteElo "2844"]
[BlackElo "2443"]
[TimeControl "180+1"]
[EndTime "10:38:24 PDT"]
[Termination "Uživatel VojtechPlat zvítězil po vzdání soupeře"]

1. e4 {[%clk 0:03:00]} 1... e5 {[%clk 0:03:00]} 2. Nf3 {[%clk 0:03:00.1]} 2...
Nc6 {[%clk 0:03:00.3]} 3. Bb5 {[%clk 0:03:00.1]} 3... a6 {[%clk 0:03:00.1]} 4.
Ba4 {[%clk 0:03:00.1]} 4... Nf6 {[%clk 0:02:59.8]} 5. d4 {[%clk 0:03:00.6]} 5...
exd4 {[%clk 0:02:56.6]} 6. O-O {[%clk 0:03:00.5]} 6... Be7 {[%clk 0:02:54.6]} 7.
Re1 {[%clk 0:03:00.3]} 7... O-O {[%clk 0:02:51.6]} 8. e5 {[%clk 0:02:58.9]} 8...
Nd5 {[%clk 0:02:49.9]} 9. Bb3 {[%clk 0:02:58.3]} 9... Nb6 {[%clk 0:02:45]} 10.
Nxd4 {[%clk 0:02:58.3]} 10... Nxd4 {[%clk 0:02:43.2]} 11. Qxd4 {[%clk
0:02:57.8]} 11... d6 {[%clk 0:02:37.7]} 12. exd6 {[%clk 0:02:57.2]} 12... Bxd6
{[%clk 0:02:37.2]} 13. Bf4 {[%clk 0:02:56.9]} 13... Bxf4 {[%clk 0:02:12.4]} 14.
Qxf4 {[%clk 0:02:56.2]} 14... Nd5 {[%clk 0:02:01]} 15. Bxd5 {[%clk 0:02:53.5]}
15... Qxd5 {[%clk 0:02:01]} 16. Qxc7 {[%clk 0:02:51.9]} 16... Be6 {[%clk
0:01:55.9]} 17. Nc3 {[%clk 0:02:51.2]} 17... Qd2 {[%clk 0:01:55.6]} 18. Re2
{[%clk 0:02:49.2]} 18... Qg5 {[%clk 0:01:51.6]} 19. Rae1 {[%clk 0:02:45.3]}
19... b5 {[%clk 0:01:47.3]} 20. Ne4 {[%clk 0:02:43.8]} 20... Qg6 {[%clk
0:01:46.2]} 21. b3 {[%clk 0:02:38.5]} 21... Rac8 {[%clk 0:01:39.6]} 22. Qb6
{[%clk 0:02:35.1]} 22... Bf5 {[%clk 0:01:23.7]} 23. Qxg6 {[%clk 0:02:33.8]}
23... hxg6 {[%clk 0:01:20.8]} 24. f3 {[%clk 0:02:29.4]} 24... Bxe4 {[%clk
0:01:19.3]} 25. fxe4 {[%clk 0:02:29.2]} 25... Rc3 {[%clk 0:01:16.6]} 26. Rd2
{[%clk 0:02:28.8]} 26... Rfc8 {[%clk 0:01:16.3]} 27. Ree2 {[%clk 0:02:28.9]}
27... Kf8 {[%clk 0:01:14.6]} 28. Kf2 {[%clk 0:02:29]} 28... Ke7 {[%clk
0:01:14.6]} 29. Ke1 {[%clk 0:02:29]} 29... Ke6 {[%clk 0:01:11.3]} 30. Kd1 {[%clk
0:02:28.1]} 30... Rh8 {[%clk 0:01:10.5]} 31. h3 {[%clk 0:02:27.8]} 31... Rh4
{[%clk 0:01:09.4]} 32. Rd8 {[%clk 0:02:21.2]} 32... Ke7 {[%clk 0:01:08.2]} 33.
Ra8 {[%clk 0:02:19.5]} 33... Rc6 {[%clk 0:01:06.3]} 34. Rf2 {[%clk 0:02:16.9]}
34... f6 {[%clk 0:00:58.7]} 35. Ra7+ {[%clk 0:02:15]} 35... Ke6 {[%clk
0:00:58.7]} 36. Rxg7 {[%clk 0:02:14.1]} 36... Rxe4 {[%clk 0:00:52.1]} 37. Rxg6
{[%clk 0:02:13.7]} 37... Ke5 {[%clk 0:00:52.4]} 38. Rg3 {[%clk 0:02:12.4]} 38...
Rd6+ {[%clk 0:00:50.7]} 39. Rd3 {[%clk 0:02:06.6]} 39... Rxd3+ {[%clk
0:00:49.3]} 40. cxd3 {[%clk 0:02:06.4]} 40... Re3 {[%clk 0:00:49.8]} 41. Re2
{[%clk 0:02:05.2]} 1-0

[Event "Betsys MČR v online bleskovém šachu 2021"]
[Site "Chess.com"]
[Date "2021.04.17"]
[Round "10"]
[White "adiklan"]
[Black "jonvon640"]
[Result "1-0"]
[WhiteElo "1903"]
[BlackElo "1678"]
[TimeControl "180+1"]
[EndTime "10:38:29 PDT"]
[Termination "Uživatel adiklan zvítězil matem"]

1. e4 {[%clk 0:03:00.9]} 1... c5 {[%clk 0:02:56.9]} 2. Nf3 {[%clk 0:03:00.1]}
2... Nc6 {[%clk 0:02:56.6]} 3. Bc4 {[%clk 0:02:59.2]} 3... e6 {[%clk 0:02:55.1]}
4. d4 {[%clk 0:02:57.8]} 4... cxd4 {[%clk 0:02:56]} 5. Nxd4 {[%clk 0:02:58.5]}
5... Nf6 {[%clk 0:02:52.5]} 6. Nc3 {[%clk 0:02:58.4]} 6... Bb4 {[%clk
0:02:50.1]} 7. O-O {[%clk 0:02:57.3]} 7... Bxc3 {[%clk 0:02:45.6]} 8. bxc3
{[%clk 0:02:57.6]} 8... Nxe4 {[%clk 0:02:43.5]} 9. Qd3 {[%clk 0:02:51.8]} 9...
Nf6 {[%clk 0:02:40.4]} 10. Ba3 {[%clk 0:02:49.2]} 10... Qc7 {[%clk 0:02:27.1]}
11. Nb5 {[%clk 0:02:47.8]} 11... Qa5 {[%clk 0:02:02.8]} 12. Bd6 {[%clk
0:02:41.2]} 12... a6 {[%clk 0:01:31]} 13. Nc7+ {[%clk 0:02:39.5]} 13... Kd8
{[%clk 0:01:30.1]} 14. Nxa8 {[%clk 0:02:39.5]} 14... b5 {[%clk 0:01:26]} 15.
Bc7+ {[%clk 0:02:39.3]} 15... Qxc7 {[%clk 0:01:24.4]} 16. Nxc7 {[%clk
0:02:40.2]} 16... Kxc7 {[%clk 0:01:24.9]} 17. Qg3+ {[%clk 0:02:37.2]} 17... d6
{[%clk 0:01:22.6]} 18. Qxg7 {[%clk 0:02:32.5]} 18... Rg8 {[%clk 0:01:19.2]} 19.
Qxf7+ {[%clk 0:02:30.3]} 19... Bd7 {[%clk 0:01:16.1]} 20. Bxe6 {[%clk
0:02:19.4]} 20... Rg6 {[%clk 0:01:07.2]} 21. Bxd7 {[%clk 0:02:11.2]} 21... Nxd7
{[%clk 0:01:04.8]} 22. Qxh7 {[%clk 0:02:11.2]} 22... Rg5 {[%clk 0:01:01.8]} 23.
Rfe1 {[%clk 0:02:08.8]} 23... Ne5 {[%clk 0:00:59.9]} 24. f4 {[%clk 0:02:06.9]}
24... Nf3+ {[%clk 0:00:58.6]} 25. Kf2 {[%clk 0:02:07.4]} 25... Nxe1 {[%clk
0:00:58.4]} 26. Rxe1 {[%clk 0:02:08.3]} 26... Rg4 {[%clk 0:00:55.3]} 27. Kf3
{[%clk 0:02:05.5]} 27... Rxf4+ {[%clk 0:00:43.4]} 28. Kxf4 {[%clk 0:02:05.5]}
28... Kc6 {[%clk 0:00:44.2]} 29. Re7 {[%clk 0:02:00.1]} 29... Ne5 {[%clk
0:00:42.4]} 30. Rc7+ {[%clk 0:01:59.9]} 30... Kd5 {[%clk 0:00:41.5]} 31. Qg8+
{[%clk 0:01:46.8]} 31... Nf7 {[%clk 0:00:35.2]} 32. Qxf7# {[%clk 0:01:46.7]} 1-0

[Event "Betsys MČR v online bleskovém šachu 2021"]
[Site "Chess.com"]
[Date "2021.04.17"]
[Round "10"]
[White "Tretrik"]
[Black "tiger196223"]
[Result "1-0"]
[WhiteElo "2087"]
[BlackElo "1825"]
[TimeControl "180+1"]
[EndTime "10:38:34 PDT"]
[Termination "Uživatel Tretrik zvítězil po vzdání soupeře"]

1. e4 {[%clk 0:03:00.9]} 1... e6 {[%clk 0:02:59.9]} 2. d4 {[%clk 0:02:59.7]}
2... d5 {[%clk 0:03:00.5]} 3. e5 {[%clk 0:03:00.3]} 3... c5 {[%clk 0:02:59.6]}
4. c3 {[%clk 0:03:00.8]} 4... Qb6 {[%clk 0:03:00]} 5. Nf3 {[%clk 0:03:00.9]}
5... Bd7 {[%clk 0:03:00.4]} 6. a3 {[%clk 0:03:01.2]} 6... Bb5 {[%clk 0:03:00.9]}
7. c4 {[%clk 0:03:00.6]} 7... Bxc4 {[%clk 0:02:58.8]} 8. Bxc4 {[%clk 0:02:59.4]}
8... dxc4 {[%clk 0:02:58.7]} 9. d5 {[%clk 0:02:57.9]} 9... exd5 {[%clk
0:02:54.4]} 10. Qxd5 {[%clk 0:02:56.7]} 10... Qc6 {[%clk 0:02:51.8]} 11. Qxc4
{[%clk 0:02:46.3]} 11... Ne7 {[%clk 0:02:49.1]} 12. Nc3 {[%clk 0:02:45]} 12...
a6 {[%clk 0:02:47.2]} 13. a4 {[%clk 0:02:33.3]} 13... Nd7 {[%clk 0:02:42.9]} 14.
O-O {[%clk 0:02:31.4]} 14... O-O-O {[%clk 0:02:33.2]} 15. Bf4 {[%clk 0:02:24.5]}
15... Qe6 {[%clk 0:02:12.5]} 16. Qe4 {[%clk 0:01:24.7]} 16... f5 {[%clk
0:02:03.7]} 17. Qe3 {[%clk 0:01:22.8]} 17... h6 {[%clk 0:01:54.9]} 18. h4 {[%clk
0:01:21.5]} 18... g6 {[%clk 0:01:48.2]} 19. Rac1 {[%clk 0:01:16.2]} 19... b6
{[%clk 0:01:37.7]} 20. b4 {[%clk 0:01:13.2]} 20... Kb7 {[%clk 0:01:23]} 21. a5
{[%clk 0:01:11]} 21... cxb4 {[%clk 0:01:12.4]} 22. Nd4 {[%clk 0:01:10]} 22...
Qb3 {[%clk 0:00:49]} 23. Nxb3 {[%clk 0:01:08.8]} 1-0